bitfinex-derivatives/quotes_BTCF0:USTF0_20210404
["timestamp","ask_amount","ask_price","bid_price","bid_amount"]
[1617528744172,2.15148584,57522.0,57521.0,0.71679277]
[1617528747674,1.24349655,57522.0,57521.0,0.27]
[1617528748075,1.24349655,57522.0,57519.0,0.27]
[1617528748276,1.90732046,57522.0,57521.0,0.44820265]
[1617528748675,1.90732046,57522.0,57521.0,0.71820265]
[1617528754681,2.40732046,57522.0,57521.0,0.71820265]
[1617528754882,6.66762046,57522.0,57521.0,0.71820265]
[1617528755084,7.10983431,57522.0,57521.0,0.27]
[1617528755289,5.60983431,57522.0,57521.0,0.27]
[1617528755486,5.60983431,57522.0,57520.0,0.4482615]
[1617528755687,5.60983431,57522.0,57517.0,0.44827057]
[1617528755688,6.47910513,57522.0,57517.0,0.44827057]
[1617528755887,6.47910513,57522.0,57521.0,0.27]
[1617528756087,6.47910513,57522.0,57517.0,0.44827057]
[1617528756288,2.21851971,57521.0,57518.0,0.27]
[1617528756487,2.8344,57519.0,57518.0,0.27]
[1617528756688,2.8344,57519.0,57516.0,0.27]
[1617528757089,2.8344,57519.0,57518.0,0.27]
[1617528757290,2.8344,57519.0,57515.0,0.44828866]
[1617528757691,2.8344,57519.0,57518.0,0.27]
[1617528757891,2.8344,57519.0,57516.0,0.01]
[1617528758091,3.93925105,57519.0,57516.0,0.45828828]
[1617528758291,3.93925105,57519.0,57518.0,0.27]
[1617528758491,2.8344,57519.0,57517.0,0.44828809]
[1617528758692,2.8344,57519.0,57517.0,0.45828809]
[1617528758892,1.47201439,57518.0,57517.0,0.01]
[1617528759093,2.47201439,57518.0,57517.0,0.01]
[1617528759291,2.47201439,57518.0,57516.0,0.44828723]
[1617528759492,2.47201439,57518.0,57517.0,0.44828603]
[1617528759693,1.47201439,57518.0,57517.0,0.71828603]
[1617528759893,1.47201439,57518.0,57515.0,0.44828615]
[1617528760294,1.47201439,57518.0,57517.0,0.27]
[1617528760494,1.47201439,57518.0,57516.0,0.27]
[1617528760893,2.47201439,57518.0,57517.0,0.07]
[1617528761092,2.47201439,57518.0,57516.0,0.27]
[1617528761292,2.9739501,57518.0,57516.0,0.27]
[1617528761492,2.9739501,57518.0,57517.0,0.27]
[1617528761692,1.9739501,57518.0,57514.0,0.27]
[1617528762095,2.9739501,57518.0,57513.0,0.44827162]
[1617528762294,2.9739501,57518.0,57514.0,0.27]
[1617528762494,1.21327866,57515.0,57514.0,0.71827178]
[1617528762896,1.21327866,57515.0,57514.0,0.44827178]
[1617528763197,1.45795439,57515.0,57514.0,0.71827178]
[1617528763895,2.45795439,57515.0,57514.0,0.71827178]
[1617528765801,2.45795439,57515.0,57514.0,0.27]
[1617528766198,1.45795439,57515.0,57511.0,0.01]
[1617528766399,2.45795439,57515.0,57511.0,0.01]
[1617528766598,2.45795439,57515.0,57514.0,0.27]
[1617528766798,0.54964529,57515.0,57511.0,0.27]
[1617528766999,1.54964529,57515.0,57511.0,0.27]
[1617528767199,2.21243945,57515.0,57511.0,0.27]
[1617528767601,0.66278589,57512.0,57511.0,0.27]
[1617528768002,1.66278589,57512.0,57511.0,0.27]
[1617528768403,1.66278589,57512.0,57509.0,0.44754585]
[1617528768603,1.90748384,57512.0,57508.0,0.44757849]
[1617528768801,1.90748384,57512.0,57510.0,0.27]
[1617528769001,1.90748384,57512.0,57496.0,0.4519]
[1617528769002,0.24469811,57511.0,57509.0,0.01]
[1617528769404,1.24469811,57511.0,57505.0,0.44757878]
[1617528769601,0.24469811,57511.0,57510.0,0.27]
[1617528769802,0.44162038,57512.0,57510.0,2.9533]
[1617528770001,1.44162038,57512.0,57510.0,2.6833]
[1617528770203,1.0,57512.0,57511.0,0.27]
[1617528771203,1.66241927,57512.0,57511.0,0.27]
[1617528771402,4.14241927,57512.0,57511.0,0.27]
[1617528771602,4.14241927,57512.0,57508.0,0.27]
[1617528771603,6.00227106,57512.0,57508.0,0.27]
[1617528771802,1.5,57510.0,57508.0,0.27]
[1617528772003,1.5,57510.0,57505.0,0.4474521]
[1617528772004,3.274,57506.0,57505.0,0.4474521]
[1617528772204,4.8942,57506.0,57501.0,0.44749811]
[1617528772403,0.0519,57505.0,57501.0,0.44749811]
[1617528772604,0.10725655,57502.0,57500.0,0.27]
[1617528773003,0.10725655,57502.0,57488.0,0.50854467]
[1617528773004,0.90568667,57501.0,57497.0,0.27]
[1617528773203,2.40568667,57501.0,57497.0,0.27]
[1617528773406,0.00210233,57489.0,57487.0,0.50855819]
[1617528773606,0.13987233,57489.0,57487.0,0.50855819]
[1617528773807,0.14287539,57489.0,57487.0,0.50855819]
[1617528774005,0.14287539,57489.0,57488.0,0.27]
[1617528774606,0.25013194,57489.0,57488.0,0.27]
[1617528774806,0.24712894,57489.0,57488.0,0.77855681]
[1617528775306,0.24712894,57489.0,57488.0,0.50855681]
[1617528775507,0.24712894,57489.0,57488.0,0.77855681]
[1617528776309,1.24712894,57489.0,57488.0,0.27]
[1617528776609,1.25013203,57489.0,57488.0,0.27]
[1617528776808,1.25013203,57489.0,57487.0,0.50855729]
[1617528777008,1.25013203,57489.0,57488.0,0.27]
[1617528777209,1.24502655,57489.0,57488.0,0.27]
[1617528777610,1.24502655,57489.0,57480.0,0.50682719]
[1617528777812,1.24502655,57489.0,57481.0,0.27]
[1617528778011,0.24502655,57489.0,57481.0,0.27]
[1617528778210,0.24502655,57489.0,57480.0,0.50682719]
[1617528778411,0.24502655,57489.0,57482.0,0.50680527]
[1617528778613,0.13777,57489.0,57486.0,0.10725655]
[1617528778811,1.00209493,57496.0,57486.0,0.10725655]
[1617528779012,0.00508768,57497.0,57486.0,0.10725655]
[1617528779013,1.0,57495.0,57486.0,0.10725655]
[1617528779212,1.0,57495.0,57487.0,0.27]
[1617528779413,1.1161,57491.0,57487.0,0.27]
[1617528779613,1.0,57488.0,57487.0,0.27]
[1617528779813,1.0,57488.0,57484.0,0.50681691]
[1617528779814,1.0,57488.0,57484.0,0.27]
[1617528780214,1.0,57488.0,57485.0,0.27]
[1617528780414,1.0,57488.0,57479.0,0.5068286]
[1617528780615,1.0,57488.0,57480.0,0.27]
[1617528781015,1.0,57488.0,57477.0,0.10725655]
[1617528781016,1.0,57488.0,57479.0,0.01]
[1617528781415,1.0,57488.0,57481.0,0.27]
[1617528781616,1.0,57486.0,57478.0,0.77656798]
[1617528781816,1.0,57486.0,57480.0,0.01]
[1617528782015,1.0,57486.0,57482.0,0.27]
[1617528782214,1.0,57486.0,57479.0,0.77657425]
[1617528782415,1.0,57486.0,57481.0,0.01]
[1617528782616,0.10725655,57482.0,57479.0,0.50657425]
[1617528782816,0.10725655,57482.0,57480.0,0.27]
[1617528783218,0.00209267,57494.0,57485.0,3.6289]
[1617528783820,0.00209354,57497.0,57486.0,0.36177349]
[1617528784217,0.00508432,57498.0,57486.0,0.36177349]
[1617528784218,0.00209444,57498.0,57486.0,0.36177349]
[1617528784617,1.00209444,57498.0,57494.0,0.10725655]
[1617528785018,1.0,57498.0,57495.0,0.27]
[1617528785817,3.9371,57499.0,57495.0,0.27]
[1617528786018,1.0,57499.0,57495.0,0.27]
[1617528786217,1.0,57499.0,57498.0,2.8797]
[1617528786421,0.00209546,57502.0,57498.0,2.8797]
[1617528786618,0.00209546,57502.0,57501.0,0.10725655]
[1617528786820,0.0020978,57508.0,57501.0,0.10725655]
[1617528787019,0.0020978,57508.0,57501.0,0.37725655]
[1617528787421,0.00209835,57510.0,57501.0,0.37725655]
[1617528787821,0.005096,57511.0,57501.0,0.37725655]
[1617528787822,0.0020986,57511.0,57501.0,0.37725655]
[1617528788222,0.00209862,57510.0,57501.0,0.37725655]
[1617528788622,0.00209872,57511.0,57501.0,0.37725655]
[1617528788822,0.00209872,57511.0,57507.0,0.10725655]
[1617528789023,0.00209872,57511.0,57507.0,0.24751655]
[1617528789227,0.00509689,57512.0,57508.0,0.27]
[1617528789424,0.00209901,57510.0,57508.0,0.27]
[1617528789830,0.00509759,57511.0,57508.0,0.27]
[1617528789831,0.00209938,57511.0,57508.0,0.27]
[1617528790625,0.00509849,57512.0,57508.0,0.27]
[1617528790626,0.00209969,57512.0,57508.0,0.27]
[1617528790825,0.10725655,57509.0,57508.0,0.27]
[1617528797534,3.23595655,57509.0,57508.0,0.27]
[1617528802241,3.23806113,57509.0,57508.0,0.27]
[1617528803942,0.10936113,57509.0,57508.0,0.27]
[1617528805745,0.00210458,57509.0,57508.0,0.27]
[1617528806146,0.00210458,57509.0,57507.0,0.27]
[1617528806949,0.00510978,57509.0,57508.0,0.10725655]
[1617528807349,0.00510978,57509.0,57508.0,0.27]
[1617528807548,1.00510978,57509.0,57508.0,0.27]
[1617528807749,1.30049144,57509.0,57507.0,0.27]
[1617528808147,0.30049144,57509.0,57508.0,0.27]
[1617528808348,0.30049144,57509.0,57507.0,0.27]
[1617528808349,0.2,57509.0,57507.0,0.27]
[1617528808549,1.0,57508.0,57507.0,0.27]
[1617528808750,1.0,57508.0,57502.0,0.01]
[1617528808949,0.10725655,57503.0,57500.0,0.27]
[1617528809151,3.7339,57501.0,57500.0,0.27]
[1617528809353,3.7339,57501.0,57499.0,0.27]
[1617528809550,3.7339,57501.0,57500.0,0.01]
[1617528809852,3.7339,57501.0,57498.0,0.44631838]
[1617528810052,3.7339,57501.0,57497.0,0.44632755]
[1617528810250,3.7339,57501.0,57499.0,0.27]
[1617528810450,4.7339,57501.0,57498.0,0.01]
[1617528811454,1.0,57501.0,57498.0,0.01]
[1617528811653,0.00210133,57502.0,57500.0,3.2155]
[1617528811855,0.10725655,57503.0,57501.0,0.44629716]
[1617528812054,0.10725655,57503.0,57501.0,0.71629716]
[1617528812255,0.10725655,57503.0,57501.0,0.80805824]
[1617528812757,0.10725655,57503.0,57502.0,0.44652185]
[1617528813158,0.10725655,57503.0,57502.0,0.71652185]
[1617528813359,1.10725655,57503.0,57502.0,0.71652185]
[1617528813559,1.10936224,57503.0,57502.0,0.71652185]
[1617528813760,4.70206224,57503.0,57502.0,0.71652185]
[1617528814960,4.69995655,57503.0,57502.0,0.71652185]
[1617528815461,4.71007975,57503.0,57502.0,0.27]
[1617528815862,4.702062,57503.0,57502.0,0.44689586]
[1617528816262,4.7100795,57503.0,57502.0,0.27]
[1617528816461,4.7100795,57503.0,57501.0,0.44689718]
[1617528816661,4.7100795,57503.0,57495.0,0.61509425]
[1617528816662,0.2470995,57503.0,57500.0,0.44689768]
[1617528816868,0.2470995,57503.0,57502.0,3.7303]
[1617528817066,0.23697655,57503.0,57502.0,4.01442724]
[1617528817461,0.23697655,57503.0,57502.0,4.28442724]
[1617528817677,0.10725655,57503.0,57502.0,4.37618614]
[1617528818264,0.10725655,57503.0,57502.0,4.88398036]
[1617528821164,0.10725655,57509.0,57502.0,4.88398036]
[1617528821966,0.10725655,57509.0,57508.0,0.44683111]
[1617528822266,0.10725655,57509.0,57508.0,0.71683111]
[1617528823071,0.10725655,57509.0,57508.0,0.82408766]
[1617528825774,3.12195655,57509.0,57508.0,0.82408766]
[1617528827777,0.10725655,57509.0,57508.0,0.82408766]
[1617528829577,0.10725655,57509.0,57508.0,0.97634766]
[1617528829778,3.51855655,57509.0,57508.0,0.97634766]
[1617528830979,3.51855655,57509.0,57508.0,0.82408766]
[1617528831578,3.67353655,57509.0,57508.0,0.82408766]
[1617528831782,0.26223655,57509.0,57508.0,0.82408766]
[1617528832780,0.10725655,57509.0,57508.0,0.82408766]
[1617528837285,0.10725655,57509.0,57508.0,4.16248766]
[1617528837485,0.00210796,57512.0,57508.0,4.16248766]
[1617528837686,0.0051321,57509.0,57508.0,2.33297286]
[1617528838086,0.00211488,57512.0,57509.0,3.5967]
[1617528838486,0.00211523,57513.0,57511.0,0.95665565]
[1617528838686,0.00211523,57513.0,57511.0,1.07880565]
[1617528838885,0.00211523,57513.0,57512.0,0.27]
[1617528839088,0.00211523,57514.0,57512.0,1.2266333]
[1617528839887,0.00211601,57516.0,57513.0,0.95662817]
[1617528840285,0.00211601,57516.0,57515.0,0.95662533]
[1617528840686,0.00211601,57516.0,57515.0,0.96662533]
[1617528841287,0.00211601,57516.0,57515.0,1.07388188]
[1617528842290,0.00513697,57516.0,57515.0,1.07388188]
[1617528842790,0.30205679,57516.0,57515.0,1.07388188]
[1617528843189,0.30205679,57516.0,57515.0,4.00558188]
[1617528843391,0.30209141,57517.0,57515.0,4.00558188]
[1617528843790,0.00211254,57516.0,57515.0,3.04895655]
[1617528844193,0.00211328,57517.0,57515.0,4.00467704]
[1617528844592,0.00211342,57518.0,57516.0,1.04745325]
[1617528844992,0.00211342,57518.0,57517.0,0.27]
[1617528845392,0.00211342,57518.0,57517.0,1.22572552]
[1617528847596,0.00211432,57520.0,57517.0,1.22572552]
[1617528848095,0.00513477,57521.0,57519.0,0.95568018]
[1617528848096,0.00211448,57521.0,57519.0,0.95568018]
[1617528848496,0.00211424,57520.0,57516.0,0.09173549]
[1617528848896,0.00211424,57520.0,57518.0,0.27]
[1617528849195,0.00211424,57520.0,57517.0,0.27]
[1617528849397,0.00211424,57520.0,57519.0,0.95569227]
[1617528849594,0.00211424,57520.0,57519.0,1.22569227]
[1617528849796,0.00211424,57520.0,57519.0,0.95569227]
[1617528850196,0.00513459,57521.0,57519.0,0.95569227]
[1617528850197,0.00211379,57521.0,57519.0,1.22569227]
[1617528850597,0.00211379,57521.0,57520.0,0.95567197]
[1617528851000,0.00211169,57523.0,57520.0,0.71733582]
[1617528851197,0.00211169,57523.0,57522.0,0.10725655]
[1617528851399,0.00512661,57523.0,57522.0,0.55406303]
[1617528851599,0.00512661,57523.0,57522.0,0.82406303]
[1617528852303,0.0101527,57524.0,57522.0,0.82406303]
[1617528853099,0.00211169,57523.0,57522.0,0.37725655]
[1617528853499,0.00211169,57523.0,57522.0,0.82405653]
[1617528856203,0.00512846,57524.0,57522.0,0.82405653]
[1617528856603,0.00512846,57524.0,57523.0,0.44679924]
[1617528857005,0.00512846,57524.0,57523.0,0.71679924]
[1617528857604,0.00211192,57524.0,57523.0,0.71679924]
[1617528857803,0.00211192,57524.0,57523.0,4.27529924]
[1617528858005,0.10936932,57526.0,57523.0,4.27529924]
[1617528858404,0.00211252,57525.0,57523.0,4.36702951]
[1617528858804,0.00211252,57525.0,57523.0,3.8285]
[1617528859206,0.00211252,57525.0,57524.0,0.44679051]
[1617528859404,0.00211252,57525.0,57524.0,0.57034051]
[1617528859607,0.00211252,57525.0,57524.0,0.84034051]
[1617528860509,0.10936926,57526.0,57524.0,0.84034051]
[1617528860909,0.10936926,57526.0,57525.0,0.44677997]
[1617528861310,0.10936926,57526.0,57525.0,0.71677997]
[1617528862214,0.10725655,57526.0,57525.0,0.71677997]
[1617528863530,0.10725655,57526.0,57525.0,0.27]
[1617528863919,0.10725655,57526.0,57525.0,0.80820086]
[1617528866021,0.1093672,57526.0,57525.0,0.80820086]
[1617528866421,0.10725655,57526.0,57525.0,0.80820086]
[1617528866621,0.10936701,57526.0,57525.0,0.80820086]
[1617528868126,0.10936701,57526.0,57525.0,0.3617284]
[1617528868727,0.10725655,57526.0,57525.0,0.80818298]
[1617528869127,0.10936468,57526.0,57525.0,0.80818298]
[1617528869428,0.10725655,57526.0,57525.0,0.80818298]
[1617528871330,0.10936373,57526.0,57525.0,0.80818298]
[1617528871529,4.13296373,57526.0,57525.0,0.80818298]
[1617528871729,4.13597269,57526.0,57525.0,0.27]
[1617528872129,4.13085655,57526.0,57524.0,0.01]
[1617528872529,4.43179401,57526.0,57525.0,0.27]
[1617528872729,4.43179401,57526.0,57522.0,0.27]
[1617528872930,0.30126055,57525.0,57523.0,0.44697521]
[1617528873330,1.10725655,57526.0,57524.0,0.27]
[1617528873531,1.0,57525.0,57524.0,0.27]
[1617528873732,1.30132016,57525.0,57524.0,0.27]
[1617528874132,1.30132016,57525.0,57524.0,0.44697575]
[1617528874332,1.29132016,57525.0,57524.0,0.44697575]
[1617528874533,1.30132016,57525.0,57524.0,0.71697575]
[1617528874734,1.30132016,57525.0,57524.0,0.44697575]
[1617528875133,1.30132016,57525.0,57524.0,0.71697575]
[1617528881642,0.30132016,57525.0,57524.0,0.71697575]
[1617528881841,0.30132016,57525.0,57524.0,0.76887575]
[1617528882442,0.0101433,57525.0,57524.0,0.76887575]
[1617528882845,0.11740021,57526.0,57524.0,4.06927575]
[1617528883242,0.00512406,57525.0,57524.0,4.01737575]
[1617528883443,0.00512406,57525.0,57524.0,4.1246323]
[1617528883644,0.00512406,57525.0,57524.0,3.67765655]
[1617528884044,0.00211024,57525.0,57524.0,4.1247667]
[1617528884444,0.00211024,57525.0,57524.0,3.67765655]
[1617528884845,0.00211024,57525.0,57524.0,4.12476232]
[1617528885648,0.00211024,57525.0,57524.0,0.82436232]
[1617528887751,0.11238188,57526.0,57524.0,1.33242902]
[1617528887752,0.10936724,57526.0,57524.0,1.33242902]
[1617528888553,0.10936724,57526.0,57525.0,0.44709324]
[1617528888854,0.10936724,57526.0,57525.0,0.71709324]
[1617528891457,0.10725655,57526.0,57525.0,0.71709324]
[1617528891857,0.10936674,57526.0,57525.0,0.71709324]
[1617528892459,0.00211019,57526.0,57525.0,0.71709324]
[1617528893660,0.10936674,57526.0,57525.0,0.82434979]
[1617528893861,0.10936674,57526.0,57525.0,4.95557294]
[1617528893862,0.11238699,57526.0,57525.0,4.95557294]
[1617528894163,0.11238699,57526.0,57525.0,5.04729448]
[1617528894763,0.10725655,57526.0,57525.0,5.04729448]
[1617528894963,0.10725655,57526.0,57525.0,6.04729448]
[1617528895163,0.00211179,57526.0,57525.0,5.18997217]
[1617528895465,0.00211179,57526.0,57525.0,6.04729448]
[1617528896070,0.00211285,57529.0,57525.0,6.18995743]
[1617528896466,0.00211463,57534.0,57528.0,0.95592375]
[1617528896867,0.00513553,57535.0,57533.0,0.95594714]
[1617528897067,0.00513553,57535.0,57533.0,1.05789714]
[1617528897267,0.01016813,57535.0,57534.0,0.95594723]
[1617528897668,0.01016813,57535.0,57534.0,1.33320378]
[1617528897868,0.11742258,57536.0,57534.0,1.33320378]
[1617528898269,0.11742258,57536.0,57535.0,0.95593373]
[1617528898671,0.11238926,57536.0,57535.0,1.22593219]
[1617528899469,0.11238926,57536.0,57535.0,0.77847539]
[1617528899671,0.11238926,57536.0,57535.0,1.2259343]
[1617528900372,0.10936721,57536.0,57535.0,1.2259343]
[1617528900975,0.10725655,57536.0,57535.0,1.2259343]
[1617528901372,0.10936668,57536.0,57535.0,1.2259343]
[1617528902174,0.10725655,57536.0,57535.0,1.2259343]
[1617528904775,0.0021118,57537.0,57535.0,1.2259343]
[1617528905478,0.00210639,57540.0,57536.0,0.95452292]
[1617528905879,0.00210678,57541.0,57539.0,0.55405233]
[1617528906281,0.00210678,57541.0,57540.0,0.45680039]
[1617528906478,0.00210678,57541.0,57540.0,4.08970039]
[1617528906878,0.00210678,57541.0,57540.0,4.18141108]
[1617528907881,0.10936333,57541.0,57540.0,4.18141108]
[1617528908082,0.10725655,57541.0,57540.0,4.18141108]
[1617528913790,0.10725655,57541.0,57540.0,4.68898938]
[1617528915792,0.10725655,57541.0,57540.0,5.68898938]
[1617528916994,0.10725655,57541.0,57540.0,5.18141108]
[1617528920596,0.10725655,57541.0,57540.0,4.18141108]
[1617528932912,0.10725655,57541.0,57540.0,4.6882985]
[1617528949431,0.10725655,57541.0,57540.0,4.83094019]
[1617528952434,0.10725655,57541.0,57540.0,4.6882985]
[1617528954739,0.00210358,57548.0,57540.0,4.6882985]
[1617528955140,0.00210782,57544.0,57540.0,4.6882985]
[1617528955542,0.00210782,57544.0,57540.0,3.73461069]
[1617528955740,0.00210782,57544.0,57541.0,0.09169682]
[1617528955941,0.00210782,57544.0,57541.0,0.22184682]
[1617528956141,0.00210782,57544.0,57543.0,0.9560671]
[1617528956642,0.00210782,57544.0,57543.0,1.2260671]
[1617528957043,0.00210395,57545.0,57543.0,1.2260671]
[1617528957446,0.00210346,57546.0,57544.0,0.95606223]
[1617528957845,0.00210346,57546.0,57545.0,1.22605696]
[1617528958247,0.0021031,57547.0,57545.0,1.06331351]
[1617528958647,0.0021031,57547.0,57545.0,1.33331351]
[1617528959049,0.0021031,57547.0,57546.0,0.95605446]
[1617528959449,0.0021031,57547.0,57546.0,1.22605446]
[1617528961250,0.0021031,57547.0,57546.0,1.31774928]
[1617528961651,3.0910031,57547.0,57546.0,1.31774928]
[1617528961853,3.0889,57547.0,57546.0,1.31774928]
[1617528962254,3.0889,57547.0,57546.0,1.22605446]
[1617528964058,3.09099872,57547.0,57546.0,1.22605446]
[1617528965763,3.09400254,57547.0,57546.0,1.22605446]
[1617528967261,3.09100133,57547.0,57546.0,1.22605446]
[1617528969167,3.0889,57547.0,57546.0,1.22605446]
[1617528969566,3.09400255,57547.0,57546.0,1.22605446]
[1617528970168,3.0889,57547.0,57546.0,1.22605446]
[1617528970470,3.09100077,57547.0,57546.0,1.22605446]
[1617528970669,3.09100077,57547.0,57546.0,0.27]
[1617528970973,3.09100077,57547.0,57546.0,1.22663982]
[1617528971372,0.00210077,57547.0,57546.0,1.22663982]
[1617528972574,0.00210077,57547.0,57546.0,4.78593982]
[1617528973175,0.00511419,57547.0,57546.0,4.87763023]
[1617528976479,0.0051204,57548.0,57546.0,4.87763023]
[1617528976880,0.01014298,57548.0,57547.0,1.04844172]
[1617528977180,0.01014298,57548.0,57547.0,1.31844172]
[1617528977381,0.00512214,57548.0,57547.0,1.31844172]
[1617528979885,0.00210939,57548.0,57547.0,1.31844172]
[1617528981087,0.00210939,57548.0,57547.0,1.48383172]
[1617528981586,0.00512207,57550.0,57547.0,1.48383172]
[1617528981587,0.00210939,57549.0,57547.0,1.48383172]
[1617528981987,0.00210939,57549.0,57548.0,0.95649519]
[1617528982489,0.00512207,57550.0,57548.0,1.22649519]
[1617528982990,0.00512207,57550.0,57549.0,0.95649422]
[1617528983488,0.00512207,57550.0,57549.0,1.22649422]
[1617528984289,0.11740139,57551.0,57549.0,1.22649422]
[1617528984489,0.01015444,57550.0,57549.0,0.27]
[1617528984890,0.01015444,57550.0,57548.0,0.27]
[1617528985292,0.01015444,57550.0,57549.0,0.27]
[1617528985492,0.01015444,57550.0,57549.0,0.9565088]
[1617528985898,0.00512961,57550.0,57549.0,1.2265088]
[1617528986701,0.0101591,57550.0,57549.0,1.2265088]
[1617528988300,0.30211849,57550.0,57549.0,1.2265088]
[1617528988798,0.01016889,57550.0,57549.0,1.2265088]
[1617528989197,0.30214068,57550.0,57549.0,1.2265088]
[1617528989597,0.00513317,57550.0,57549.0,1.2265088]
[1617528990097,0.01016221,57550.0,57549.0,1.2265088]
[1617528990498,0.00513381,57550.0,57549.0,1.2265088]
[1617528990898,0.1174235,57551.0,57549.0,1.2265088]
[1617528991300,0.40924044,57551.0,57550.0,0.95671668]
[1617528991697,0.40924044,57551.0,57550.0,1.22671668]
[1617528998104,0.10725655,57551.0,57550.0,1.22671668]
[1617528998303,0.10725655,57551.0,57550.0,4.91451668]
[1617528998504,0.40954607,57551.0,57550.0,4.91451668]
[1617528998907,0.10725655,57551.0,57550.0,5.00620465]
[1617528999508,0.40957501,57551.0,57550.0,4.04948797]
[1617528999907,0.40957501,57551.0,57550.0,5.14884785]
[1617529000308,0.40957501,57551.0,57550.0,5.00622311]
[1617529000710,0.11743242,57551.0,57550.0,5.00622311]
[1617529001111,0.40956565,57551.0,57550.0,5.00622311]
[1617529006018,0.55043565,57551.0,57550.0,5.00622311]
[1617529007520,0.55043565,57551.0,57550.0,1.31842311]
[1617529008123,0.55043565,57551.0,57550.0,1.22673514]
[1617529009429,0.91327589,57551.0,57550.0,1.22673514]
[1617529010027,0.40956565,57551.0,57550.0,1.22673514]
[1617529016837,0.245312,57551.0,57550.0,1.22673514]
[1617529017339,0.5383274,57551.0,57550.0,1.22673514]
[1617529019738,0.90254233,57551.0,57550.0,1.22673514]
[1617529020139,0.5383274,57551.0,57550.0,1.22673514]
[1617529020539,1.14710381,57551.0,57550.0,1.22673514]
[1617529020740,5.74930381,57551.0,57550.0,1.22673514]
[1617529020939,5.69680381,57551.0,57550.0,1.22673514]
[1617529021140,5.45229759,57551.0,57550.0,1.22673514]
[1617529021541,6.14181724,57551.0,57550.0,0.71783347]
[1617529024446,5.69681309,57551.0,57550.0,0.71783347]
[1617529025344,5.69681309,57551.0,57550.0,1.2270394]
[1617529025745,5.69681309,57551.0,57550.0,0.71783347]
[1617529033049,5.74941309,57551.0,57550.0,0.71783347]
[1617529033250,5.69681309,57551.0,57550.0,0.70983347]
[1617529034959,2.14711309,57551.0,57550.0,0.70983347]
[1617529035369,2.14711309,57551.0,57550.0,3.74093347]
[1617529035566,1.14711309,57551.0,57550.0,3.74093347]
[1617529036053,1.14711309,57551.0,57550.0,3.83262767]
[1617529036755,1.14711309,57551.0,57550.0,0.80152767]
[1617529037155,3.80761309,57551.0,57550.0,0.80152767]
[1617529037554,3.80761309,57551.0,57550.0,0.70983347]
[1617529040860,3.80761309,57551.0,57550.0,0.81709002]
[1617529042560,3.80761309,57551.0,57550.0,1.32584783]
[1617529043561,3.1988274,57551.0,57550.0,1.32584783]
[1617529043961,0.5383274,57551.0,57550.0,1.32584783]
[1617529049567,0.90198562,57551.0,57550.0,1.32584783]
[1617529049968,0.90198562,57551.0,57550.0,0.81709002]
[1617529050467,0.90198562,57551.0,57550.0,1.32591204]
[1617529051769,0.90198562,57551.0,57550.0,0.81709002]
[1617529053575,1.90198562,57551.0,57550.0,0.81709002]
[1617529060885,0.90198562,57551.0,57550.0,0.81709002]
[1617529061086,1.90198562,57551.0,57550.0,0.81709002]
[1617529063786,1.90198562,57551.0,57550.0,1.18350246]
[1617529064287,5.55968562,57551.0,57550.0,1.18350246]
[1617529064488,5.45242907,57551.0,57550.0,1.07624591]
[1617529064988,5.55968562,57551.0,57550.0,1.07624591]
[1617529072997,7.05968562,57551.0,57550.0,0.81424591]
[1617529073197,7.25968562,57551.0,57550.0,0.81424591]
[1617529073397,7.05968562,57551.0,57550.0,0.81424591]
[1617529073598,7.05968562,57551.0,57550.0,0.36641244]
[1617529073599,7.50367125,57551.0,57550.0,0.36641244]
[1617529074199,8.00803796,57551.0,57550.0,0.36641244]
[1617529074700,7.50367125,57551.0,57550.0,0.36641244]
[1617529075100,8.00801725,57551.0,57550.0,0.36641244]
[1617529076201,4.35031725,57551.0,57550.0,0.36641244]
[1617529077304,4.35031725,57551.0,57550.0,0.36331244]
[1617529078705,4.35031725,57551.0,57550.0,0.35331244]
[1617529078706,3.35031725,57551.0,57550.0,0.35331244]
[1617529078905,4.35031725,57551.0,57550.0,0.35331244]
[1617529079105,4.40221725,57551.0,57550.0,0.41445149]
[1617529079605,4.40221725,57551.0,57550.0,0.35331244]
[1617529080107,4.35031725,57551.0,57550.0,0.35331244]
[1617529081108,4.35031725,57551.0,57540.0,0.44715429]
[1617529081309,2.74215655,57541.0,57540.0,0.44715429]
[1617529081511,3.04402423,57541.0,57540.0,0.71715429]
[1617529081708,3.04402423,57541.0,57540.0,0.44715429]
[1617529081909,3.28858839,57541.0,57540.0,0.50829533]
[1617529082109,3.28858839,57541.0,57540.0,0.77829533]
[1617529082510,3.04402423,57541.0,57540.0,0.71715429]
[1617529082911,3.04402423,57541.0,57540.0,0.77829514]
[1617529083310,4.04402423,57541.0,57540.0,0.77829514]
[1617529084711,4.09552423,57541.0,57540.0,0.77829514]
[1617529084912,4.04402423,57541.0,57540.0,0.77829514]
[1617529092522,5.54402423,57541.0,57540.0,0.77829514]
[1617529092724,5.54402423,57541.0,57540.0,0.47629514]
[1617529092924,5.54402423,57541.0,57540.0,0.06114085]
[1617529093123,5.54402423,57541.0,57530.0,0.50804941]
[1617529093322,1.5,57539.0,57530.0,0.50804941]
[1617529093524,1.5,57530.0,57526.0,0.27]
[1617529093723,1.5,57530.0,57520.0,0.50807466]
[1617529093924,1.5,57530.0,57518.0,0.50808335]
[1617529093925,1.30000044,57527.0,57518.0,0.50808335]
[1617529094124,1.30000044,57527.0,57525.0,0.27]
[1617529094325,1.0,57527.0,57519.0,0.27]
[1617529094727,1.0,57527.0,57517.0,0.50810674]
[1617529095127,1.0,57527.0,57519.0,0.27]
[1617529095328,1.0,57527.0,57518.0,0.01]
[1617529095528,0.10725655,57519.0,57517.0,0.50810674]
[1617529095727,0.25508655,57519.0,57517.0,0.50810674]
[1617529095927,0.25508655,57519.0,57518.0,0.27]
[1617529097728,0.25508655,57519.0,57517.0,0.01]
[1617529097930,1.25508655,57519.0,57518.0,0.27]
[1617529098329,1.25508655,57519.0,57517.0,0.27]
[1617529098529,1.25508655,57519.0,57511.0,0.27]
[1617529098929,1.25508655,57519.0,57518.0,0.27]
[1617529099129,1.25508655,57519.0,57512.0,0.27]
[1617529099531,0.10725655,57513.0,57509.0,0.61350798]
[1617529099730,0.10725655,57513.0,57511.0,0.27]
[1617529099931,1.10725655,57513.0,57511.0,0.27]
[1617529100131,1.10725655,57513.0,57510.0,0.01]
[1617529100332,1.10725655,57513.0,57509.0,0.61350798]
[1617529100535,1.10725655,57513.0,57512.0,0.27]
[1617529100732,1.10725655,57513.0,57510.0,0.27]
[1617529101133,1.10725655,57513.0,57512.0,0.27]